bitfinex/quotes_ETHUSD_20240703
["timestamp","ask_amount","ask_price","bid_price","bid_amount"]
[1720017127305,1.70853626,3324.3,3323.8,1.49850458]
[1720017127638,1.70853626,3324.2,3323.8,1.49850458]
[1720017127945,1.70853626,3324.1,3323.8,1.49850458]
[1720017128110,1.70853626,3324.0,3323.8,1.49850458]
[1720017128310,0.52124833,3323.9,3323.8,1.49850458]
[1720017128511,0.52124833,3324.1,3323.8,1.49850458]
[1720017128710,1.70851669,3324.0,3323.8,1.49850458]
[1720017128943,0.52124833,3323.9,3323.8,1.49850458]
[1720017129138,0.52124833,3324.1,3323.8,1.49850458]
[1720017129341,0.52124833,3324.2,3324.0,0.99850458]
[1720017129669,1.952,3324.5,3324.0,0.99850458]
[1720017129670,4.952,3324.5,3324.0,0.99850458]
[1720017129828,0.52125303,3324.1,3324.0,1.49850458]
[1720017130154,1.70846897,3324.1,3324.0,1.49850458]
[1720017131067,1.70846897,3324.1,3324.0,0.99850458]
[1720017131273,1.87931587,3324.1,3323.8,0.99850458]
[1720017131443,0.52125248,3324.0,3323.8,1.49850458]
[1720017131634,0.52125248,3324.0,3323.8,0.99850458]
[1720017131840,0.52125248,3323.9,3323.8,0.99850458]
[1720017132040,0.52125248,3324.3,3323.8,0.99850458]
[1720017132243,1.70849934,3324.2,3323.8,0.99850458]
[1720017132573,1.70849934,3324.1,3323.8,1.49850458]
[1720017132773,0.52126256,3324.0,3323.8,1.49850458]
[1720017132962,0.52126256,3323.9,3323.8,1.49850458]
[1720017133160,0.52126256,3323.9,3323.5,6.8196]
[1720017133161,3.0,3324.6,3324.0,1.49850458]
[1720017133468,3.00777662,3324.5,3324.0,1.49850458]
[1720017133657,4.70847662,3324.4,3324.0,1.49850458]
[1720017133851,1.70847662,3324.3,3324.0,1.49850458]
[1720017134054,1.70847662,3324.2,3324.0,1.49850458]
[1720017134235,1.70847662,3324.1,3324.0,1.49850458]
[1720017136070,1.18722306,3324.1,3324.0,1.49850458]
[1720017136237,1.18722306,3324.1,3324.0,8.50930458]
[1720017136238,0.52124976,3324.1,3324.0,8.50930458]
[1720017136445,7.32,3324.7,3324.6,0.99850458]
[1720017136779,9.02820627,3324.7,3324.6,0.99850458]
[1720017137468,9.02820627,3324.7,3324.6,1.49850458]
[1720017138155,12.02820627,3324.7,3324.6,1.49850458]
[1720017138877,12.02800773,3324.7,3324.6,1.49850458]
[1720017139443,4.70795703,3324.7,3324.6,1.49850458]
[1720017139665,1.70795703,3324.7,3324.6,1.49850458]
[1720017141266,0.52112912,3324.7,3324.6,1.49850458]
[1720017141561,1.70795606,3324.7,3324.6,1.49850458]
[1720017141953,1.70795606,3324.7,3324.6,8.69030458]
[1720017141954,0.52112912,3324.7,3324.6,8.69030458]
[1720017142285,3.0,3325.2,3324.6,9.55933504]
[1720017142576,3.0,3325.2,3325.0,0.5]
[1720017143277,3.0,3325.2,3325.1,1.49850458]
[1720017143453,3.0,3325.2,3325.1,0.99850458]
[1720017144179,3.0,3325.2,3325.1,1.49850458]
[1720017144570,3.0,3325.2,3325.0,1.0]
[1720017144876,3.0,3325.2,3325.1,0.5]
[1720017145083,7.38084291,3325.2,3325.0,1.0]
[1720017145252,1.70784291,3325.1,3325.0,1.0]
[1720017145459,9.02684291,3325.1,3325.0,1.0]
[1720017145784,12.02684291,3325.1,3325.0,1.0]
[1720017145961,14.20041903,3325.1,3325.0,1.0]
[1720017146291,16.23789324,3325.1,3325.0,1.0]
[1720017149158,15.71677252,3325.1,3325.0,1.0]
[1720017149357,16.23798249,3325.1,3325.0,1.0]
[1720017152499,12.49218429,3325.1,3325.0,1.0]
[1720017152706,19.98377711,3325.1,3325.0,1.0]
[1720017155807,16.23798074,3325.1,3325.0,1.0]
[1720017156009,19.98377944,3325.1,3325.0,1.0]
[1720017156184,15.33777944,3325.1,3325.0,1.0]
[1720017156390,15.33758295,3325.1,3325.0,1.0]
[1720017157210,13.3001759,3325.1,3325.0,1.0]
[1720017157507,15.33753699,3325.1,3325.0,1.0]
[1720017157878,13.3001759,3325.1,3325.0,1.0]
[1720017158271,11.12699161,3325.1,3325.0,1.0]
[1720017159116,9.41879645,3325.1,3325.0,1.0]
[1720017159292,12.31370187,3325.1,3325.0,1.0]
[1720017159615,12.31370195,3325.1,3325.0,1.0]
[1720017161815,10.75170195,3325.1,3325.0,1.0]
[1720017162403,9.56482191,3325.1,3325.0,1.0]
[1720017162595,10.75170764,3325.1,3325.0,1.0]
[1720017163420,12.78903912,3325.1,3325.0,1.0]
[1720017164397,14.36794303,3325.1,3325.0,1.0]
[1720017164900,13.25694303,3325.1,3325.0,1.0]
[1720017165100,14.36794303,3325.1,3325.0,1.0]
[1720017165917,17.07163191,3325.1,3325.0,1.0]
[1720017166124,17.5928334,3325.1,3325.0,1.0]
[1720017167324,9.43563128,3325.1,3325.0,1.0]
[1720017168726,7.85672737,3325.1,3325.0,1.0]
[1720017169243,7.33544897,3325.1,3325.0,1.0]
[1720017169421,7.85664009,3325.1,3325.0,1.0]
[1720017169622,3.0,3325.1,3325.0,1.0]
[1720017169800,7.85671327,3325.1,3325.0,1.0]
[1720017170130,8.9423846,3325.1,3325.0,1.0]
[1720017171031,15.8325846,3325.1,3325.0,0.75092138]
[1720017171197,19.02414808,3325.1,3325.0,0.5055533]
[1720017172511,13.15816029,3325.1,3325.0,0.5055533]
[1720017172709,19.02539291,3325.1,3325.0,0.5055533]
[1720017174625,17.91439291,3325.1,3325.0,0.5055533]
[1720017174827,19.02539291,3325.1,3325.0,0.5055533]
[1720017175710,12.63687133,3325.1,3325.0,0.5055533]
[1720017175931,19.02502707,3325.1,3325.0,0.5055533]
[1720017177445,3.0,3324.6,3323.8,8.61310458]
[1720017177740,1.111,3324.1,3323.9,0.86131046]
[1720017177940,1.70851848,3324.0,3323.8,8.61310458]
[1720017178245,1.111,3324.1,3323.8,8.61310458]
[1720017178246,1.70851848,3323.9,3323.8,8.61310458]
[1720017178547,2.81951848,3323.9,3323.8,7.1146]
[1720017179207,2.81963622,3323.9,3323.8,7.1146]
[1720017179810,2.81963627,3323.9,3323.8,7.1146]
[1720017180827,7.85763246,3323.9,3323.4,8.34840458]
[1720017181145,6.74663246,3323.8,3323.4,8.34840458]
[1720017181445,1.111,3323.5,3323.4,8.34840458]
[1720017181947,2.81999821,3323.5,3323.4,8.34840458]
[1720017182142,1.111,3323.5,3323.4,8.34840458]
[1720017182343,1.63237649,3323.5,3323.4,8.34840458]
[1720017182549,2.81998362,3323.5,3323.4,8.34840458]
[1720017182853,1.70898362,3323.5,3323.4,8.34840458]
[1720017184448,1.70898362,3323.5,3323.4,9.23324504]
[1720017184759,1.111,3323.8,3323.4,9.23324504]
[1720017184914,0.52135534,3323.5,3323.4,8.34840458]
[1720017185114,1.70889585,3323.5,3323.4,8.34840458]
[1720017186051,1.70889585,3323.5,3323.4,8.84840458]
[1720017186431,1.70889585,3323.5,3323.4,8.34840458]
[1720017188051,1.70889585,3323.5,3323.4,0.99850458]
[1720017188261,1.70891994,3323.5,3323.4,0.99850458]
[1720017190745,4.70891994,3323.5,3323.4,0.99850458]
[1720017191120,5.29091193,3323.5,3323.4,0.99850458]
[1720017191330,7.32963544,3323.5,3323.4,0.99850458]
[1720017191621,8.96207126,3323.5,3323.4,0.99850458]
[1720017191921,8.38007927,3323.5,3323.4,0.99850458]
[1720017192449,7.26907927,3323.5,3323.4,0.99850458]
[1720017192750,8.38007478,3323.5,3323.4,0.99850458]
[1720017193251,6.34164549,3323.5,3323.4,0.99850458]
[1720017194731,6.34156868,3323.5,3323.4,0.99850458]
[1720017195036,4.63243096,3323.5,3323.4,0.99850458]
[1720017195363,3.34158231,3323.5,3323.4,0.99850458]
[1720017195522,6.34158231,3323.5,3323.4,0.99850458]
[1720017197951,6.34158157,3323.5,3323.4,0.99850458]
[1720017199027,6.34154298,3323.5,3323.4,0.99850458]
[1720017201262,4.63243096,3323.5,3323.4,0.99850458]
[1720017201562,6.3415448,3323.5,3323.4,0.99850458]
[1720017203960,14.01409928,3323.5,3323.4,0.99850458]
[1720017204167,6.97569928,3323.5,3323.4,0.99850458]
[1720017204568,5.26658544,3323.5,3323.4,0.99850458]
[1720017204732,3.97587703,3323.5,3323.4,0.99850458]
[1720017204928,6.97587703,3323.5,3323.4,0.99850458]
[1720017207768,6.34172255,3323.5,3323.4,0.99850458]
[1720017208498,6.34167649,3323.5,3323.4,0.99850458]
[1720017208669,5.82024553,3323.5,3323.4,0.99850458]
[1720017209256,4.70924553,3323.5,3323.4,0.99850458]
[1720017209602,5.82024553,3323.5,3323.4,0.99850458]
[1720017211167,5.82014122,3323.5,3323.4,0.99850458]
[1720017211372,5.82014128,3323.5,3323.4,0.99850458]
[1720017211582,1.70914128,3323.5,3323.4,8.32410458]
[1720017211851,0.52141447,3323.5,3323.4,9.21253288]
[1720017212302,0.52141447,3323.5,3323.4,13.49753288]
[1720017212964,7.32,3324.1,3323.9,7.2615]
[1720017213195,1.70861698,3324.0,3323.9,7.2615]
[1720017213388,1.70861698,3324.0,3323.9,8.26000458]
[1720017213577,4.70861698,3324.0,3323.9,8.26000458]
[1720017213997,4.70861698,3324.0,3323.9,7.76000458]
[1720017214305,4.111,3324.0,3323.9,7.76000458]
[1720017214476,5.8196139,3324.0,3323.9,7.76000458]
[1720017214863,4.7086139,3324.0,3323.9,7.76000458]
[1720017215102,1.7086139,3324.0,3323.9,7.76000458]
[1720017215287,2.8196139,3324.0,3323.9,7.76000458]
[1720017215490,5.8196139,3324.0,3323.9,7.76000458]
[1720017215694,4.7086139,3324.0,3323.9,7.76000458]
[1720017215876,2.8196139,3324.0,3323.9,7.76000458]
[1720017216077,5.8196139,3324.0,3323.9,7.76000458]
[1720017216306,5.8196139,3324.0,3323.9,8.26000458]
[1720017217617,3.0,3324.0,3323.9,8.26000458]
[1720017217778,1.70858584,3324.0,3323.9,8.26000458]
[1720017220798,4.70858584,3324.0,3323.9,8.26000458]
[1720017220998,4.70858633,3324.0,3323.9,8.26000458]
[1720017221211,6.41717282,3324.0,3323.9,7.76000458]
[1720017221493,5.8958958,3324.0,3323.9,0.99850458]
[1720017221699,7.60448727,3324.0,3323.9,0.99850458]
[1720017222007,8.71548727,3324.0,3323.9,0.99850458]
[1720017222195,8.71548727,3324.0,3323.9,1.49850458]
[1720017223677,7.60448727,3324.0,3323.9,1.49850458]
[1720017224205,6.41717713,3324.0,3323.9,1.49850458]
[1720017224506,7.6044845,3324.0,3323.9,1.49850458]
[1720017224712,7.6044845,3324.0,3323.9,0.99850458]
[1720017224882,8.7154845,3324.0,3323.9,0.99850458]
[1720017226596,7.6044845,3324.0,3323.9,1.49850458]
[1720017227711,7.60448954,3324.0,3323.9,1.49850458]
[1720017228973,4.70859374,3324.0,3323.9,1.49850458]
[1720017229178,1.70859374,3324.0,3323.9,1.49850458]
[1720017229826,4.70859374,3324.0,3323.9,1.49850458]
[1720017230922,4.70859374,3324.0,3323.9,0.99850458]
[1720017230923,4.70858276,3324.0,3323.9,0.99850458]
[1720017234085,3.5212799,3324.0,3323.9,0.99850458]
[1720017234286,2.17200911,3324.0,3323.9,0.99850458]
[1720017234489,5.17200911,3324.0,3323.9,0.99850458]
[1720017234703,5.17203283,3324.0,3323.9,0.99850458]
[1720017235123,2.17203283,3324.0,3323.9,0.99850458]
[1720017235320,1.70880484,3324.0,3323.9,0.99850458]
[1720017237384,1.70864434,3324.0,3323.9,0.99850458]
[1720017238233,4.70864434,3324.0,3323.9,0.99850458]
[1720017239660,1.70864434,3324.0,3323.9,0.99850458]
[1720017240521,4.111,3324.3,3323.9,0.99850458]
[1720017240751,1.70859837,3324.2,3324.0,0.5]
[1720017241057,1.70859837,3324.1,3324.0,0.5]
[1720017241945,2.81959837,3324.1,3323.9,0.99850458]
[1720017242151,4.70859837,3324.0,3323.9,0.99850458]
[1720017242318,1.70859837,3324.0,3323.9,0.99850458]
[1720017242674,4.70859837,3324.0,3323.9,0.99850458]
[1720017242820,6.74661685,3324.0,3323.9,0.99850458]
[1720017243383,6.74661685,3324.0,3323.4,7.3654]
[1720017243384,3.0,3324.0,3323.4,0.99850458]
[1720017243668,1.111,3323.5,3323.4,0.99850458]
[1720017243828,0.52134139,3323.5,3323.4,0.99850458]
[1720017244022,1.18749656,3323.5,3323.4,0.99850458]
[1720017244216,1.70883795,3323.5,3323.4,0.99850458]
[1720017244517,2.81983795,3323.5,3323.4,0.99850458]
[1720017244945,1.70883795,3323.5,3323.4,0.99850458]
[1720017245640,2.81983795,3323.5,3323.4,0.99850458]
[1720017245842,5.81983795,3323.5,3323.4,0.99850458]
[1720017246720,7.52901409,3323.5,3323.4,0.99850458]
[1720017247145,6.41802963,3323.5,3323.4,0.99850458]
[1720017249438,4.70902291,3323.5,3323.4,0.99850458]
[1720017249839,4.70896549,3323.5,3323.4,0.99850458]
[1720017250078,5.29096204,3323.5,3323.4,0.99850458]
[1720017250240,5.29094482,3323.5,3323.4,0.99850458]
[1720017251185,7.32923669,3323.5,3323.4,0.99850458]
[1720017251340,7.32924211,3323.5,3323.4,0.99850458]
[1720017253053,4.7697532,3323.5,3323.4,0.99850458]
[1720017253360,7.85100547,3323.5,3323.4,0.99850458]
[1720017255382,8.38000892,3323.5,3323.4,0.99850458]
[1720017256349,7.19218751,3323.5,3323.4,0.99850458]
[1720017256551,11.60597438,3323.5,3323.4,0.99850458]
[1720017259294,11.60592695,3323.5,3323.4,0.99850458]
[1720017259773,11.08451907,3323.5,3323.4,0.99850458]
[1720017259972,11.60592461,3323.5,3323.4,0.99850458]
[1720017260369,11.60592592,3323.5,3323.4,0.99850458]
[1720017261984,10.49492592,3323.5,3323.4,0.99850458]
[1720017262230,11.60592592,3323.5,3323.4,0.99850458]
[1720017262957,9.56759825,3323.5,3323.4,0.99850458]
[1720017263148,11.60591436,3323.5,3323.4,0.99850458]
[1720017263347,11.60591437,3323.5,3323.4,0.99850458]
[1720017266487,7.85849342,3323.5,3323.4,0.99850458]
[1720017266779,11.60591244,3323.5,3323.4,0.99850458]
[1720017269731,7.85849342,3323.5,3323.4,0.99850458]
[1720017269935,11.60604997,3323.5,3323.4,0.99850458]
[1720017270149,7.85855655,3323.5,3323.4,0.99850458]
[1720017273159,7.85847306,3323.5,3323.4,0.99850458]
[1720017273662,7.85847775,3323.5,3323.4,0.99850458]
[1720017274355,8.64432552,3323.5,3323.4,0.99850458]
[1720017274777,8.64435767,3323.5,3323.4,0.99850458]
[1720017274944,6.7475099,3323.5,3323.4,0.99850458]
[1720017275273,7.8585099,3323.5,3323.4,0.99850458]
[1720017275649,6.7475099,3323.5,3323.4,0.99850458]
[1720017275973,7.8585099,3323.5,3323.4,0.99850458]
[1720017276343,7.85850916,3323.5,3323.4,0.99850458]
[1720017276786,7.85850882,3323.5,3323.4,0.99850458]
[1720017277576,6.74750882,3323.5,3323.4,0.99850458]
[1720017277774,7.85850882,3323.5,3323.4,0.99850458]
[1720017279375,7.85850453,3323.5,3323.4,0.99850458]
[1720017279677,4.111,3323.5,3323.4,0.99850458]
[1720017279884,4.85850857,3323.5,3323.4,0.99850458]
[1720017280056,7.85850857,3323.5,3323.4,0.99850458]
[1720017281089,6.74750857,3323.5,3323.4,0.99850458]
[1720017282505,7.85850857,3323.5,3323.4,0.99850458]
[1720017283073,7.8585094,3323.5,3323.4,0.99850458]
[1720017283978,6.7475094,3323.5,3323.4,0.99850458]
[1720017286309,6.7475094,3323.5,3323.4,8.00420458]
[1720017286310,3.0,3323.5,3323.4,8.00420458]
[1720017286480,0.52139137,3323.5,3323.4,8.00420458]
[1720017286821,1.111,3323.7,3323.6,0.5]
[1720017287127,2.82002367,3323.7,3323.6,0.5]
[1720017287276,7.85826921,3323.7,3323.6,0.5]
[1720017288487,10.50070864,3323.7,3323.6,0.5]
[1720017289631,10.50069934,3323.7,3323.6,0.5]
[1720017289921,10.50068823,3323.7,3323.4,8.50420458]
[1720017290126,6.22581656,3323.6,3323.4,8.50420458]
[1720017290306,4.85819365,3323.5,3323.4,8.50420458]
[1720017290483,7.85819365,3323.5,3323.4,8.50420458]
[1720017291292,7.85819671,3323.5,3323.4,8.50420458]
[1720017291820,6.74719671,3323.5,3323.4,8.50420458]
[1720017292898,6.74724426,3323.5,3323.4,8.50420458]
[1720017295409,9.38981852,3323.5,3323.4,0.99850458]
[1720017296226,10.43997464,3323.5,3323.4,0.99850458]
[1720017298322,11.55097464,3323.5,3323.4,0.99850458]
[1720017299525,5.16108185,3323.5,3323.4,0.99850458]
[1720017299848,5.46300783,3323.5,3323.4,0.99850458]
[1720017300015,8.46323343,3323.5,3323.4,0.99850458]
[1720017300199,9.39077728,3323.5,3323.4,0.99850458]
[1720017300407,10.50177728,3323.5,3323.4,0.99850458]
[1720017301947,4.111,3323.5,3323.4,0.99850458]
[1720017302179,5.4629329,3323.5,3323.4,0.99850458]
[1720017302448,10.50134247,3323.5,3323.4,0.99850458]
[1720017303006,10.501546,3323.5,3323.4,0.99850458]
[1720017305115,4.111,3323.5,3323.4,0.99850458]
[1720017305334,9.54011476,3323.5,3323.4,0.99850458]
[1720017305534,10.50166077,3323.5,3323.4,0.99850458]
[1720017308438,4.111,3323.5,3323.4,0.99850458]
[1720017311035,10.65192667,3323.5,3323.4,0.99850458]
[1720017311644,3.0,3323.2,3322.5,0.99850458]
[1720017311812,1.111,3322.6,3322.3,0.99850458]
[1720017312011,1.111,3322.4,3322.3,0.99850458]
[1720017312236,4.8598957,3322.4,3322.3,0.99850458]
[1720017312866,4.8598957,3322.4,3322.1,0.99850458]
[1720017313157,1.111,3322.2,3321.8,0.99850458]
[1720017313361,1.111,3322.0,3321.8,0.99850458]
[1720017313560,3.48598957,3322.4,3321.8,0.99850458]
[1720017313561,4.8598957,3321.9,3321.8,0.99850458]
[1720017313722,3.7488957,3321.9,3321.8,8.25080458]
[1720017313925,1.70983205,3321.9,3321.8,9.13190581]
[1720017314357,1.18825112,3321.9,3321.8,12.30590581]
[1720017314560,1.111,3322.9,3322.3,7.2523]
[1720017314732,1.111,3322.7,3322.4,0.5]
[1720017314933,3.74852614,3322.6,3322.5,0.99850458]
[1720017315131,6.74852692,3322.6,3322.5,0.99850458]
[1720017318052,3.52153807,3322.6,3322.5,0.99850458]
[1720017318365,3.74854039,3322.6,3322.5,0.99850458]
[1720017318572,6.74854039,3322.6,3322.5,0.99850458]
[1720017319065,6.74854039,3322.6,3322.3,8.25080458]
[1720017319249,1.111,3322.4,3322.3,8.25080458]
[1720017319560,2.82085754,3322.4,3322.3,8.25080458]
[1720017319764,7.8599361,3322.4,3322.3,8.25080458]
[1720017320232,6.7489361,3322.4,3322.3,0.99850458]
[1720017320562,6.74892891,3322.4,3322.3,0.99850458]
[1720017321241,3.52158707,3322.4,3322.3,0.99850458]
[1720017321428,6.74926282,3322.4,3322.3,0.99850458]
[1720017322559,7.86026282,3322.4,3322.1,0.99850458]
[1720017322741,1.111,3322.2,3322.1,0.99850458]
[1720017322949,2.82101451,3322.2,3322.1,0.99850458]
[1720017323669,1.71001451,3322.2,3322.1,0.99850458]
[1720017324458,4.71001451,3322.2,3321.9,0.99850458]
[1720017324647,1.111,3322.0,3321.6,0.99850458]
[1720017324972,1.111,3321.8,3321.6,0.99850458]
[1720017325166,0.52169237,3321.7,3321.6,0.99850458]
[1720017325467,1.71029452,3321.7,3321.6,0.99850458]
[1720017327167,2.82129452,3321.7,3321.6,0.99850458]
[1720017327776,2.82119798,3321.7,3321.6,0.99850458]
[1720017330151,5.82119798,3321.7,3321.6,0.99850458]
[1720017331284,5.82144272,3321.7,3321.6,0.99850458]
[1720017332747,7.14565699,3321.7,3321.3,0.99850458]
[1720017332978,1.111,3321.4,3321.3,0.99850458]
[1720017333152,1.63272808,3321.4,3321.3,0.99850458]
[1720017334249,1.111,3321.4,3321.3,0.99850458]
[1720017334449,1.63272845,3321.4,3321.3,0.99850458]
[1720017335489,0.52172845,3321.4,3321.3,0.99850458]
[1720017335708,0.52172845,3321.4,3321.3,7.97111792]
[1720017335993,1.111,3321.9,3321.5,0.5]
[1720017336281,0.52165315,3321.8,3321.5,0.5]
[1720017336458,1.111,3321.9,3321.5,0.5]
[1720017336459,0.52165315,3321.7,3321.5,0.5]
[1720017336664,1.111,3321.7,3321.5,0.5]
[1720017336862,0.52165315,3321.6,3321.5,0.5]
[1720017337785,1.111,3321.7,3321.4,0.99850458]
[1720017337955,1.111,3321.5,3321.4,0.99850458]
[1720017338153,2.82148167,3321.5,3321.4,0.99850458]
[1720017340270,2.82148167,3321.5,3321.3,0.99850458]
[1720017340475,5.82148167,3321.4,3321.3,0.99850458]
[1720017340889,5.82154351,3321.4,3321.3,0.99850458]
[1720017341180,5.82154351,3321.4,3321.1,0.99850458]
[1720017341386,1.111,3321.2,3321.1,0.99850458]
[1720017341569,1.63275237,3321.2,3321.1,0.99850458]
[1720017341753,0.52175237,3321.2,3321.1,0.99850458]
[1720017342084,1.18886705,3321.2,3321.1,0.99850458]
[1720017342249,0.52175237,3321.2,3321.1,0.99850458]
[1720017342963,0.52175237,3321.5,3321.1,0.99850458]
[1720017343164,1.71058936,3321.4,3321.1,0.99850458]
[1720017343359,1.71058936,3321.3,3321.1,0.99850458]
[1720017343564,0.52175237,3321.2,3321.1,0.99850458]
[1720017343770,0.52175237,3321.5,3321.1,0.99850458]
[1720017343975,3.0,3321.6,3321.1,0.99850458]
[1720017343976,1.71055316,3321.4,3321.1,0.99850458]
[1720017344276,0.52175544,3321.3,3321.1,0.99850458]
[1720017344478,0.52175544,3321.2,3321.1,0.99850458]
[1720017347574,3.0,3321.8,3321.3,0.99850458]
[1720017347753,7.4727,3321.6,3321.3,0.99850458]
[1720017347959,4.71044146,3321.5,3321.3,0.99850458]
[1720017348155,1.71044146,3321.4,3321.3,0.99850458]
[1720017349656,1.71044146,3321.4,3320.9,0.99850458]
[1720017349858,1.71044146,3321.3,3320.9,0.99850458]
[1720017350072,1.71044146,3321.2,3320.9,0.99850458]
[1720017350385,1.04727,3321.4,3320.9,0.99850458]
[1720017350386,0.52172721,3321.1,3320.9,0.99850458]
[1720017350684,0.52172721,3321.2,3320.9,0.99850458]
[1720017350889,0.52177039,3321.1,3320.9,0.99850458]
[1720017351267,0.52177518,3321.0,3320.9,0.99850458]
[1720017353654,1.71062609,3321.0,3320.9,0.99850458]
[1720017353971,0.52177518,3321.0,3320.9,8.39412271]
[1720017354363,3.0,3321.5,3321.4,0.99850458]
[1720017354682,4.71033255,3321.5,3321.4,0.99850458]
[1720017356619,4.71033255,3321.5,3321.2,0.99850458]
[1720017356919,1.71033255,3321.4,3321.2,0.99850458]
[1720017357219,0.52174759,3321.3,3321.2,0.99850458]
[1720017357525,0.52174759,3321.3,3320.9,1.49850458]
[1720017357526,2.06269845,3321.3,3320.9,1.49850458]
[1720017357677,1.1887761,3321.2,3320.9,0.99850458]
[1720017358005,0.52174759,3321.1,3320.9,1.49850458]
[1720017358193,1.1887761,3321.0,3320.9,0.99850458]
[1720017358383,1.71052369,3321.0,3320.9,0.99850458]
[1720017358886,1.71052369,3321.0,3320.7,0.99850458]
[1720017359080,1.71052369,3320.9,3320.7,1.49850458]
[1720017359285,1.71052369,3320.8,3320.7,1.49850458]
[1720017360331,1.71052369,3320.8,3320.7,0.99850458]
[1720017360481,1.71072322,3320.8,3320.5,0.99850458]
[1720017360814,3.75113229,3320.7,3320.5,0.99850458]
[1720017361008,1.71091419,3320.6,3320.5,0.99850458]
[1720017361210,1.71091419,3320.6,3319.6,1.49850458]
[1720017361211,6.8615,3320.5,3319.6,1.49850458]
[1720017361413,7.60855016,3320.4,3319.6,1.49850458]
[1720017361584,3.75130874,3320.3,3319.6,1.49850458]
[1720017361784,6.75130874,3320.2,3319.6,1.49850458]
[1720017361981,4.71091419,3320.1,3319.6,1.49850458]
[1720017362176,1.71091419,3320.0,3319.8,0.5]
[1720017362415,1.71091419,3319.9,3319.8,0.5]
[1720017362924,1.18938849,3319.9,3319.8,0.5]
[1720017363134,1.71133049,3319.9,3319.8,0.5]
[1720017363420,1.7113406,3319.9,3319.8,0.5]
[1720017364294,1.7113406,3319.9,3319.6,0.99850458]
[1720017364632,3.85724142,3320.4,3319.6,0.99850458]
[1720017364633,1.7113406,3319.8,3319.7,0.5]
[1720017365379,0.52194444,3319.8,3319.7,0.5]
[1720017365884,0.52194444,3320.3,3319.7,0.5]
[1720017366111,1.71135309,3320.2,3319.7,0.5]
[1720017366321,1.71135309,3320.1,3320.0,0.99850458]
[1720017366820,10.32,3320.4,3320.0,0.99850458]
[1720017367017,1.71110232,3320.3,3320.2,0.5]
[1720017367223,1.71110232,3320.3,3320.2,1.49850458]
[1720017367382,0.52188702,3320.3,3320.2,1.49850458]
[1720017367579,1.71102926,3320.3,3320.0,1.49850458]
[1720017367785,10.32,3320.4,3320.2,0.5]
[1720017367983,1.71103971,3320.3,3320.2,0.5]
[1720017368214,1.71103971,3320.3,3320.0,1.49850458]
[1720017368419,10.32,3320.4,3320.3,0.5]
[1720017368696,10.32,3320.4,3320.0,0.99850458]
[1720017368697,12.03103812,3320.4,3320.0,0.99850458]
[1720017368896,12.03103812,3320.4,3319.8,0.99850458]
[1720017368897,2.74303812,3320.3,3319.8,0.99850458]
[1720017369097,1.18916657,3320.2,3319.9,0.5]
[1720017369398,9.808,3320.6,3319.9,0.5]
[1720017369399,1.71131495,3320.1,3319.9,0.5]
[1720017369600,1.18937669,3320.0,3319.9,0.5]
[1720017369912,1.71131495,3320.0,3319.9,0.5]
[1720017370485,1.71131495,3320.0,3319.7,0.5]
[1720017370718,0.15,3320.2,3319.6,0.5]
[1720017370719,1.71129267,3319.9,3319.6,0.5]
[1720017370945,1.71129267,3319.9,3318.9,7.2041]
[1720017370946,1.71129267,3319.8,3319.2,1.49850458]
[1720017371224,1.71129267,3319.7,3319.2,0.5]
[1720017371515,1.71129267,3319.6,3319.2,0.5]
[1720017371703,1.71129267,3319.5,3319.2,0.5]
[1720017371908,1.71129267,3319.4,3319.2,0.5]
[1720017372109,3.0,3319.6,3319.2,0.5]
[1720017372330,1.71175792,3319.5,3319.2,0.5]
[1720017372505,3.0,3319.5,3319.1,0.5]
[1720017372689,3.0,3319.5,3319.0,0.99850458]
[1720017372690,0.52204755,3319.4,3319.0,0.99850458]
[1720017372892,1.39872722,3319.6,3319.0,0.99850458]
[1720017373091,1.71180962,3319.5,3319.0,0.99850458]
[1720017373291,1.71180962,3319.4,3319.0,0.99850458]
[1720017373622,3.0,3319.5,3319.2,0.99850458]
[1720017373785,3.0,3319.7,3319.3,0.82664046]
[1720017373985,3.0,3319.7,3319.5,1.49850458]
[1720017375732,7.32,3319.8,3319.7,1.49850458]
[1720017375940,3.0,3319.8,3319.7,1.49850458]
[1720017376220,0.15,3320.2,3319.7,1.49850458]
[1720017376421,1.71135896,3320.1,3319.7,1.49850458]
[1720017376593,0.15,3320.2,3319.7,1.49850458]
[1720017376788,1.71133963,3320.1,3319.7,1.49850458]
[1720017376994,0.15,3320.2,3319.7,1.49850458]
[1720017377224,0.52193715,3320.1,3319.7,1.49850458]
[1720017377527,0.15,3320.2,3319.7,1.49850458]
[1720017377824,0.52193723,3320.1,3319.7,1.49850458]
[1720017378023,0.15,3320.2,3319.7,1.49850458]
[1720017378222,0.52193732,3320.1,3319.7,1.49850458]
[1720017378421,0.15,3320.2,3319.7,1.49850458]
[1720017378724,1.71146718,3320.1,3319.7,1.49850458]
[1720017378922,1.71148624,3320.0,3319.7,1.49850458]
[1720017379115,0.52197945,3319.9,3319.7,1.49850458]
[1720017379688,0.5219798,3320.0,3319.7,1.49850458]
[1720017380806,0.52197759,3319.9,3319.7,1.49850458]
[1720017381005,0.52198007,3319.8,3319.7,0.99850458]
[1720017381323,0.52198146,3319.8,3319.5,0.99850458]
[1720017381499,0.52198146,3319.7,3319.5,0.99850458]
[1720017381706,0.52198146,3319.9,3319.5,0.99850458]
[1720017382415,0.52199349,3319.8,3319.5,0.99850458]
[1720017382625,0.52199349,3319.7,3319.5,0.99850458]
[1720017382806,0.52199349,3319.9,3319.5,0.99850458]
[1720017383014,1.18957291,3319.8,3319.5,0.99850458]
[1720017383209,0.52199349,3319.7,3319.5,0.99850458]
[1720017383431,0.52199349,3319.7,3319.5,1.49850458]
[1720017383607,0.52199349,3319.9,3319.5,1.49850458]
[1720017383806,0.52199349,3319.8,3319.5,1.49850458]
[1720017384037,0.52199349,3319.9,3319.5,1.49850458]
[1720017384196,0.52199349,3319.8,3319.5,1.49850458]
[1720017384401,0.52199349,3319.7,3319.5,1.49850458]
[1720017384625,0.52199349,3319.6,3319.5,1.49850458]
[1720017385836,0.52199782,3319.6,3319.5,0.99850458]
[1720017390928,1.04393079,3320.0,3319.9,0.99850458]
[1720017391249,2.23337596,3320.0,3319.9,0.99850458]
[1720017391652,2.47171356,3320.0,3319.6,0.99850458]
[1720017391855,1.71139616,3319.9,3319.6,0.99850458]
[1720017392037,0.5219798,3320.0,3319.6,0.99850458]
[1720017392357,1.71150907,3319.9,3319.6,0.99850458]
[1720017392547,0.5219798,3320.0,3319.6,0.99850458]
[1720017392548,0.52198503,3319.8,3319.6,0.99850458]
[1720017392753,1.71148427,3319.7,3319.6,0.99850458]